[Event "16th EWICC 2015"]
[Site "Kutaisi"]
[Date "2015.06.02"]
[Round "5"]
[White "Mammadova, Gulnar"]
[Black "Zhukova, Natalia"]
[Result "1-0"]
[ECO "C68"]
[WhiteElo "2293"]
[BlackElo "2456"]
[Annotator "Robot 11"]
[PlyCount "67"]
[EventDate "2015.??.??"]
[EventCountry "GEO"]
[TimeControl "900+10"]

1. e4 {[%emt 0:00:02]} e5 {[%emt 0:00:09]} 2. Nf3 {[%emt 0:00:06]} Nc6 {[%emt
0:00:02]} 3. Bb5 {[%emt 0:00:23]} a6 {[%emt 0:00:26]} 4. Bxc6 {[%emt 0:00:03]}
dxc6 {[%emt 0:00:01]} 5. O-O {[%emt 0:00:02]} Bg4 {[%emt 0:00:03]} 6. h3 {
[%emt 0:00:12]} Bxf3 {[%emt 0:00:03]} 7. Qxf3 {[%emt 0:00:05]} Qd7 {[%emt 0:00:
01]} 8. d3 {[%emt 0:01:57]} f6 {[%emt 0:00:05]} 9. Be3 {[%emt 0:00:13]} h5 {
[%emt 0:00:13]} 10. h4 {[%emt 0:02:38]} O-O-O {[%emt 0:00:19]} 11. Rd1 {[%emt
0:00:31]} Nh6 {[%emt 0:02:34]} 12. Nc3 {[%emt 0:01:53]} Ng4 {[%emt 0:00:09]}
13. d4 {[%emt 0:00:20]} Nxe3 {[%emt 0:01:15]} 14. fxe3 {[%emt 0:00:01]} Bd6 {
[%emt 0:00:03]} 15. Ne2 {[%emt 0:00:33]} Rde8 {[%emt 0:04:38]} 16. c4 {[%emt 0:
01:35]} exd4 {[%emt 0:00:10]} 17. exd4 {[%emt 0:00:03]} c5 {[%emt 0:00:00]} 18.
b4 {[%emt 0:02:00]} cxd4 {[%emt 0:00:17]} 19. Rxd4 {[%emt 0:00:07]} Qg4 {[%emt
0:00:18]} 20. Rb1 {[%emt 0:01:53]} Qxh4 {[%emt 0:00:15]} 21. e5 {[%emt 0:00:10]
} Qxd4+ {[%emt 0:01:37]} 22. Nxd4 {[%emt 0:00:04]} Bxe5 {[%emt 0:00:02]} 23.
Qf5+ {[%emt 0:00:21]} Kb8 {[%emt 0:00:05]} 24. Ne2 {[%emt 0:00:39]} g5 {[%emt
0:00:49]} 25. b5 {[%emt 0:00:21]} a5 {[%emt 0:00:02]} 26. b6 {[%emt 0:00:21]}
c6 {[%emt 0:00:39]} 27. Rd1 {[%emt 0:00:03]} g4 {[%emt 0:01:42]} 28. Qd7 {
[%emt 0:00:10]} g3 {[%emt 0:00:16]} 29. Nd4 {[%emt 0:00:16]} Rc8 {[%emt 0:01:
09]} 30. Ne6 {[%emt 0:00:03]} c5 {[%emt 0:01:51]} 31. Nd8 {[%emt 0:00:16]}
Rhxd8 {[%emt 0:00:20]} 32. Qxd8 {[%emt 0:00:02]} Bd4+ {[%emt 0:00:01]} 33. Rxd4
{[%emt 0:00:03]} cxd4 {[%emt 0:00:02]} 34. Qxd4 {[%emt 0:00:04]} 1-0

[Event "16th EWICC 2015"]
[Site "Kutaisi"]
[Date "2015.06.02"]
[Round "5"]
[White "Melashvili, Nino"]
[Black "Dordzhieva, Dinara"]
[Result "0-1"]
[ECO "A80"]
[WhiteElo "2173"]
[BlackElo "2242"]
[Annotator "Robot 11"]
[PlyCount "90"]
[EventDate "2015.??.??"]
[EventCountry "GEO"]
[TimeControl "900+10"]

1. d4 {[%emt 0:00:02]} f5 {[%emt 0:00:01]} 2. Bg5 {[%emt 0:00:01]} Nf6 {[%emt
0:00:21]} 3. Bxf6 {[%emt 0:00:03]} exf6 {[%emt 0:00:02]} 4. Nc3 {[%emt 0:00:21]
} d5 {[%emt 0:00:16]} 5. Qd3 {[%emt 0:01:52]} a6 {[%emt 0:02:01]} 6. Nh3 {
[%emt 0:01:36]} Qd6 {[%emt 0:01:53]} 7. Qe3+ {[%emt 0:00:51]} Be7 {[%emt 0:00:
17]} 8. Nf4 {[%emt 0:00:01]} c6 {[%emt 0:00:01]} 9. h4 {[%emt 0:00:20]} g6 {
[%emt 0:00:31]} 10. g3 {[%emt 0:00:30]} a5 {[%emt 0:00:49]} 11. a3 {[%emt 0:00:
35]} Na6 {[%emt 0:01:03]} 12. Na4 {[%emt 0:00:54]} Qc7 {[%emt 0:01:42]} 13. h5
{[%emt 0:02:26]} g5 {[%emt 0:03:32]} 14. Ne6 {[%emt 0:00:01]} Qd6 {[%emt 0:00:
24]} 15. Ng7+ {[%emt 0:00:11]} Kf7 {[%emt 0:01:09]} 16. h6 {[%emt 0:00:28]} Qc7
{[%emt 0:00:07]} 17. Qf3 {[%emt 0:01:39]} g4 {[%emt 0:00:03]} 18. Qd3 {[%emt 0:
00:02]} b5 {[%emt 0:01:18]} 19. Nc3 {[%emt 0:00:02]} f4 {[%emt 0:00:17]} 20.
Bg2 {[%emt 0:02:16]} Qd6 {[%emt 0:00:45]} 21. gxf4 {[%emt 0:02:11]} b4 {[%emt
0:00:14]} 22. Na4 {[%emt 0:00:45]} Rb8 {[%emt 0:00:13]} 23. Qg3 {[%emt 0:00:08]
} Bd7 {[%emt 0:00:11]} 24. e4 {[%emt 0:00:24]} dxe4 {[%emt 0:00:27]} 25. Bxe4 {
[%emt 0:00:21]} Qxd4 {[%emt 0:00:09]} 26. O-O {[%emt 0:00:06]} Qxe4 {[%emt 0:
00:18]} 27. Rfe1 {[%emt 0:00:05]} Qf3 {[%emt 0:00:29]} 28. Qh4 {[%emt 0:00:05]}
Qh3 {[%emt 0:00:01]} 29. Qxh3 {[%emt 0:00:36]} gxh3 30. Rad1 Bg4 {[%emt 0:00:
39]} 31. Rd3 {[%emt 0:00:01]} Rhd8 {[%emt 0:00:24]} 32. Rg3 {[%emt 0:00:03]}
Bd7 {[%emt 0:00:17]} 33. f5 {[%emt 0:00:14]} c5 {[%emt 0:00:10]} 34. b3 {[%emt
0:00:22]} bxa3 {[%emt 0:00:03]} 35. Nc3 {[%emt 0:00:01]} h2+ {[%emt 0:00:12]}
36. Kg2 {[%emt 0:00:17]} Bc6+ {[%emt 0:00:04]} 37. f3 {[%emt 0:00:01]} Rd2+ {
[%emt 0:00:02]} 38. Kh3 {[%emt 0:00:17]} Bd6 {[%emt 0:00:15]} 39. Rg2 {[%emt 0:
00:31]} Rxg2 {[%emt 0:00:20]} 40. Kxg2 {[%emt 0:00:00]} Nb4 {[%emt 0:00:01]}
41. Ne4 {[%emt 0:00:37]} Bxe4 42. fxe4 {[%emt 0:00:06]} Nxc2 {[%emt 0:00:16]}
43. Rd1 {[%emt 0:00:04]} Rb6 {[%emt 0:00:30]} 44. e5 {[%emt 0:00:06]} fxe5 {
[%emt 0:00:03]} 45. Kxh2 {[%emt 0:00:01]} a2 {[%emt 0:00:01]} 0-1

[Event "16th EWICC 2015"]
[Site "Kutaisi"]
[Date "2015.06.02"]
[Round "5"]
[White "Melia, Salome"]
[Black "Mammadova, Narmin"]
[Result "1-0"]
[ECO "C10"]
[WhiteElo "2452"]
[BlackElo "2117"]
[Annotator "Robot 11"]
[PlyCount "131"]
[EventDate "2015.??.??"]
[EventCountry "GEO"]
[TimeControl "900+10"]

1. e4 {[%emt 0:00:03]} e6 {[%emt 0:00:02]} 2. d4 {[%emt 0:00:03]} d5 {[%emt 0:
00:02]} 3. Nc3 {[%emt 0:00:01]} dxe4 {[%emt 0:00:03]} 4. Nxe4 {[%emt 0:00:01]}
Nd7 {[%emt 0:00:01]} 5. Nf3 {[%emt 0:00:04]} Ngf6 {[%emt 0:00:01]} 6. Nxf6+ {
[%emt 0:00:02]} Nxf6 {[%emt 0:00:01]} 7. Bc4 {[%emt 0:00:01]} h6 {[%emt 0:00:
18]} 8. O-O {[%emt 0:00:03]} Bd6 {[%emt 0:00:04]} 9. Qe2 {[%emt 0:00:20]} O-O {
[%emt 0:00:05]} 10. Ne5 {[%emt 0:01:01]} c5 {[%emt 0:00:21]} 11. dxc5 {[%emt 0:
00:12]} Bxc5 {[%emt 0:00:04]} 12. c3 {[%emt 0:01:01]} Qe7 {[%emt 0:00:40]} 13.
Bf4 {[%emt 0:00:33]} a6 {[%emt 0:00:17]} 14. a4 {[%emt 0:00:33]} Bd6 {[%emt 0:
02:41]} 15. Rfd1 {[%emt 0:00:58]} Bc7 {[%emt 0:00:19]} 16. Qf3 {[%emt 0:00:49]}
Rb8 {[%emt 0:02:39]} 17. Bb3 {[%emt 0:03:02]} Qc5 {[%emt 0:01:01]} 18. Re1 {
[%emt 0:03:16]} b5 {[%emt 0:00:47]} 19. Nd3 {[%emt 0:00:47]} Qe7 {[%emt 0:00:
12]} 20. a5 {[%emt 0:01:27]} Bb7 {[%emt 0:00:14]} 21. Qh3 {[%emt 0:00:10]} Rbd8
{[%emt 0:01:54]} 22. Bxc7 {[%emt 0:00:58]} Qxc7 {[%emt 0:00:01]} 23. Re3 {
[%emt 0:00:03]} Be4 {[%emt 0:02:00]} 24. Nb4 {[%emt 0:00:09]} Qa7 {[%emt 0:01:
11]} 25. Qh4 {[%emt 0:00:42]} Qb7 {[%emt 0:00:54]} 26. Rg3 {[%emt 0:00:17]} Kh8
{[%emt 0:00:12]} 27. Re1 {[%emt 0:00:02]} Bh7 {[%emt 0:00:13]} 28. Rf3 {[%emt
0:01:06]} Rg8 29. Rxf6 {[%emt 0:00:38]} Rd2 {[%emt 0:02:21]} 30. Rf3 {[%emt 0:
00:33]} Rxb2 {[%emt 0:00:03]} 31. Bd1 {[%emt 0:00:12]} Rb1 {[%emt 0:00:12]} 32.
Rfe3 {[%emt 0:00:06]} Qd7 {[%emt 0:00:26]} 33. Bh5 {[%emt 0:00:49]} Rxe1+ {
[%emt 0:00:38]} 34. Rxe1 {[%emt 0:00:00]} Qd2 {[%emt 0:00:08]} 35. Rd1 {[%emt
0:00:04]} Qxc3 {[%emt 0:00:03]} 36. Bxf7 {[%emt 0:00:11]} Rf8 {[%emt 0:00:01]}
37. Bxe6 {[%emt 0:00:19]} Re8 {[%emt 0:00:04]} 38. Qg4 {[%emt 0:00:29]} Bg8 {
[%emt 0:00:08]} 39. Nd5 {[%emt 0:00:10]} Qe5 {[%emt 0:00:26]} 40. Nf4 {[%emt 0:
00:08]} Bh7 {[%emt 0:00:38]} 41. h4 {[%emt 0:00:04]} b4 {[%emt 0:00:06]} 42.
Bf7 {[%emt 0:00:02]} Rf8 {[%emt 0:00:06]} 43. Ng6+ {[%emt 0:00:13]} Bxg6 {
[%emt 0:00:02]} 44. Bxg6 {[%emt 0:00:02]} b3 {[%emt 0:00:06]} 45. Qb4 {[%emt 0:
00:21]} Qf6 {[%emt 0:00:05]} 46. f3 {[%emt 0:00:16]} b2 {[%emt 0:00:20]} 47. h5
{[%emt 0:00:08]} Rc8 {[%emt 0:00:11]} 48. Qd2 {[%emt 0:00:17]} Rb8 {[%emt 0:00:
20]} 49. Rb1 {[%emt 0:00:04]} Qe5 {[%emt 0:00:07]} 50. Kh1 {[%emt 0:00:14]} Qe7
{[%emt 0:00:10]} 51. g3 {[%emt 0:00:08]} Qa3 {[%emt 0:00:12]} 52. Kg2 {[%emt 0:
00:06]} Qa2 {[%emt 0:00:13]} 53. Kh3 {[%emt 0:00:15]} Qe6+ {[%emt 0:00:12]} 54.
g4 {[%emt 0:00:01]} Qe5 {[%emt 0:00:04]} 55. Re1 {[%emt 0:00:15]} Qf6 {[%emt 0:
00:13]} 56. Kg3 {[%emt 0:00:12]} Rd8 {[%emt 0:00:11]} 57. Qb4 {[%emt 0:00:18]}
Rf8 {[%emt 0:00:10]} 58. Be4 {[%emt 0:00:02]} Qf4+ {[%emt 0:00:02]} 59. Kh3 {
[%emt 0:00:03]} Rb8 {[%emt 0:00:04]} 60. Qc3 {[%emt 0:00:10]} Qf7 {[%emt 0:00:
19]} 61. Bb1 {[%emt 0:00:02]} Rf8 {[%emt 0:00:10]} 62. Kg2 Qb7 {[%emt 0:00:09]}
63. Qd3 {[%emt 0:00:10]} g6 {[%emt 0:00:19]} 64. hxg6 {[%emt 0:00:22]} Qb4 {
[%emt 0:00:06]} 65. g7+ {[%emt 0:00:03]} Kxg7 66. Qg6+ {[%emt 0:00:05]} 1-0

[Event "16th EWICC 2015"]
[Site "Kutaisi"]
[Date "2015.06.02"]
[Round "5"]
[White "Paehtz, Elisabeth"]
[Black "Gunina, Valentina"]
[Result "0-1"]
[ECO "D11"]
[WhiteElo "2473"]
[BlackElo "2535"]
[Annotator "Robot 11"]
[PlyCount "80"]
[EventDate "2015.??.??"]
[EventCountry "GEO"]
[TimeControl "900+10"]

1. d4 {[%emt 0:00:01]} d5 {[%emt 0:00:02]} 2. c4 {[%emt 0:00:02]} c6 {[%emt 0:
00:02]} 3. Nf3 {[%emt 0:00:02]} Nf6 {[%emt 0:00:02]} 4. Qc2 {[%emt 0:00:01]}
dxc4 {[%emt 0:00:12]} 5. Qxc4 {[%emt 0:00:01]} Bf5 {[%emt 0:00:02]} 6. g3 {
[%emt 0:00:09]} e6 {[%emt 0:00:03]} 7. Bg2 {[%emt 0:00:01]} Be7 {[%emt 0:00:06]
} 8. O-O {[%emt 0:00:04]} O-O {[%emt 0:00:08]} 9. Nc3 {[%emt 0:00:11]} h6 {
[%emt 0:00:38]} 10. Re1 {[%emt 0:00:04]} Ne4 {[%emt 0:00:14]} 11. Qb3 {[%emt 0:
00:10]} Qb6 {[%emt 0:00:31]} 12. Nh4 {[%emt 0:00:43]} Bxh4 {[%emt 0:00:23]} 13.
gxh4 {[%emt 0:00:01]} Nf6 {[%emt 0:01:26]} 14. e4 {[%emt 0:00:29]} Bg6 {[%emt
0:00:05]} 15. Be3 {[%emt 0:01:08]} Qc7 {[%emt 0:00:49]} 16. f3 {[%emt 0:00:05]}
Nbd7 {[%emt 0:00:09]} 17. Rac1 {[%emt 0:00:05]} Nh5 {[%emt 0:00:18]} 18. Ne2 {
[%emt 0:00:58]} Kh7 {[%emt 0:00:45]} 19. Ng3 {[%emt 0:02:17]} f5 {[%emt 0:00:
56]} 20. Nxh5 {[%emt 0:01:27]} Bxh5 {[%emt 0:00:02]} 21. Qxe6 {[%emt 0:00:52]}
Rae8 {[%emt 0:00:12]} 22. Qb3 {[%emt 0:00:30]} fxe4 {[%emt 0:00:04]} 23. fxe4 {
[%emt 0:00:01]} Bf3 {[%emt 0:00:16]} 24. Bf2 {[%emt 0:00:47]} Bxg2 {[%emt 0:00:
25]} 25. Bg3 {[%emt 0:01:45]} Qa5 {[%emt 0:00:29]} 26. Kxg2 {[%emt 0:00:02]}
Qd2+ {[%emt 0:00:04]} 27. Kh3 {[%emt 0:00:33]} Rxe4 {[%emt 0:02:35]} 28. Rxe4 {
[%emt 0:00:01]} Qxc1 {[%emt 0:00:02]} 29. Qd3 {[%emt 0:00:12]} Kh8 {[%emt 0:00:
02]} 30. Re1 {[%emt 0:01:51]} Qxb2 {[%emt 0:00:07]} 31. Re7 {[%emt 0:00:01]}
Nf6 {[%emt 0:02:07]} 32. Qg6 {[%emt 0:00:02]} Rg8 {[%emt 0:00:01]} 33. Rxg7 {
[%emt 0:02:04]} Rxg7 {[%emt 0:00:02]} 34. Qxf6 {[%emt 0:00:01]} Qxa2 {[%emt 0:
00:12]} 35. Qxh6+ {[%emt 0:02:46]} Kg8 {[%emt 0:00:03]} 36. Qd6 {[%emt 0:00:05]
} Qf7 {[%emt 0:00:39]} 37. Qb8+ {[%emt 0:00:12]} Kh7 {[%emt 0:00:19]} 38. Kg2 {
[%emt 0:00:30]} Qd5+ {[%emt 0:00:01]} 39. Kh3 {[%emt 0:00:01]} Qf5+ {[%emt 0:
00:02]} 40. Kg2 {[%emt 0:00:02]} Rf7 {[%emt 0:00:02]} 0-1

[Event "16th EWICC 2015"]
[Site "Kutaisi"]
[Date "2015.06.02"]
[Round "5"]
[White "Petrenko, Svetlana"]
[Black "Zaksaite, Salomeja"]
[Result "1-0"]
[ECO "A49"]
[WhiteElo "2207"]
[BlackElo "2203"]
[Annotator "Robot 11"]
[PlyCount "73"]
[EventDate "2015.??.??"]
[EventCountry "GEO"]
[TimeControl "900+10"]

1. d4 {[%emt 0:00:01]} Nf6 {[%emt 0:00:02]} 2. Nf3 {[%emt 0:00:05]} g6 {[%emt
0:00:05]} 3. g3 {[%emt 0:00:01]} Bg7 {[%emt 0:00:02]} 4. Bg2 {[%emt 0:00:04]}
O-O {[%emt 0:00:38]} 5. c4 {[%emt 0:00:07]} d5 {[%emt 0:00:02]} 6. cxd5 {[%emt
0:00:12]} Nxd5 {[%emt 0:00:01]} 7. e4 {[%emt 0:00:26]} Nb6 {[%emt 0:00:06]} 8.
Nc3 {[%emt 0:00:16]} Bg4 {[%emt 0:00:51]} 9. d5 {[%emt 0:00:23]} c6 {[%emt 0:
00:05]} 10. h3 {[%emt 0:00:35]} Bd7 {[%emt 0:00:25]} 11. O-O {[%emt 0:00:47]}
cxd5 {[%emt 0:00:07]} 12. Nxd5 {[%emt 0:00:27]} e6 {[%emt 0:03:11]} 13. Bg5 {
[%emt 0:01:20]} f6 {[%emt 0:00:03]} 14. Nxb6 {[%emt 0:00:08]} Qxb6 {[%emt 0:00:
14]} 15. Bf4 {[%emt 0:00:50]} Rd8 {[%emt 0:00:51]} 16. Qc2 {[%emt 0:00:57]} Na6
{[%emt 0:00:10]} 17. Be3 {[%emt 0:00:14]} Qa5 {[%emt 0:00:34]} 18. a3 {[%emt 0:
00:47]} Rac8 {[%emt 0:00:11]} 19. Qb3 {[%emt 0:01:15]} Nc5 {[%emt 0:02:03]} 20.
Qb4 {[%emt 0:01:14]} Qxb4 {[%emt 0:00:32]} 21. axb4 {[%emt 0:00:01]} Nxe4 {
[%emt 0:00:09]} 22. Rxa7 {[%emt 0:00:40]} Bc6 {[%emt 0:00:21]} 23. Nd4 {[%emt
0:00:35]} f5 {[%emt 0:01:37]} 24. Nxe6 {[%emt 0:00:15]} Rd3 {[%emt 0:00:36]}
25. Nxg7 {[%emt 0:02:01]} Kxg7 {[%emt 0:00:01]} 26. Rc1 {[%emt 0:01:14]} Rb3 {
[%emt 0:00:41]} 27. Bxe4 {[%emt 0:00:41]} fxe4 {[%emt 0:00:03]} 28. Bd4+ {
[%emt 0:00:24]} Kg8 {[%emt 0:00:32]} 29. Bc3 {[%emt 0:00:03]} Re8 {[%emt 0:00:
32]} 30. Re1 {[%emt 0:00:11]} Rd8 {[%emt 0:00:49]} 31. g4 {[%emt 0:00:06]} h5 {
[%emt 0:00:23]} 32. gxh5 {[%emt 0:01:38]} gxh5 {[%emt 0:00:02]} 33. Kh2 {[%emt
0:00:03]} Rf8 {[%emt 0:00:54]} 34. Rg1+ {[%emt 0:00:02]} Kh7 {[%emt 0:00:15]}
35. Rg7+ {[%emt 0:00:32]} Kh6 {[%emt 0:00:02]} 36. Rg2 {[%emt 0:00:03]} Rf3 {
[%emt 0:01:20]} 37. Ra8 {[%emt 0:00:08]} 1-0

[Event "16th EWICC 2015"]
[Site "Kutaisi"]
[Date "2015.06.02"]
[Round "5"]
[White "Tedoshvili, Ana"]
[Black "Galliamova, Alisa"]
[Result "0-1"]
[ECO "B24"]
[WhiteElo "1805"]
[BlackElo "2478"]
[Annotator "Robot 11"]
[PlyCount "80"]
[EventDate "2015.??.??"]
[EventCountry "GEO"]
[TimeControl "900+10"]

1. e4 {[%emt 0:00:24]} c5 {[%emt 0:00:06]} 2. Nc3 {[%emt 0:00:02]} Nc6 {[%emt
0:00:12]} 3. d3 {[%emt 0:00:02]} g6 {[%emt 0:00:21]} 4. g3 {[%emt 0:00:01]} Bg7
{[%emt 0:00:02]} 5. Bg2 {[%emt 0:00:01]} e6 {[%emt 0:00:27]} 6. f4 {[%emt 0:00:
04]} Nge7 {[%emt 0:00:13]} 7. Nf3 {[%emt 0:00:01]} d6 {[%emt 0:00:47]} 8. O-O {
[%emt 0:00:25]} Rb8 {[%emt 0:00:25]} 9. Ne2 {[%emt 0:00:06]} b5 {[%emt 0:00:13]
} 10. c3 {[%emt 0:00:13]} b4 {[%emt 0:01:21]} 11. Be3 {[%emt 0:00:18]} bxc3 {
[%emt 0:00:33]} 12. bxc3 {[%emt 0:00:02]} O-O {[%emt 0:00:04]} 13. Qd2 {[%emt
0:00:17]} Qa5 {[%emt 0:00:54]} 14. g4 {[%emt 0:01:58]} f5 {[%emt 0:00:15]} 15.
exf5 {[%emt 0:01:11]} exf5 {[%emt 0:01:07]} 16. g5 {[%emt 0:01:19]} Be6 {[%emt
0:00:33]} 17. d4 {[%emt 0:00:55]} Bc4 {[%emt 0:02:04]} 18. Rfe1 {[%emt 0:01:32]
} Kh8 {[%emt 0:00:57]} 19. Nc1 {[%emt 0:00:37]} Nd5 {[%emt 0:00:17]} 20. Nb3 {
[%emt 0:01:53]} Qxc3 {[%emt 0:00:21]} 21. Qxc3 {[%emt 0:00:40]} Nxc3 {[%emt 0:
00:02]} 22. Rac1 {[%emt 0:00:56]} Ne2+ {[%emt 0:00:31]} 23. Rxe2 {[%emt 0:00:
09]} Bxe2 {[%emt 0:00:02]} 24. dxc5 {[%emt 0:00:10]} dxc5 {[%emt 0:00:34]} 25.
Bxc5 {[%emt 0:00:05]} Rfd8 {[%emt 0:00:28]} 26. Bf2 {[%emt 0:01:19]} Rd1+ {
[%emt 0:00:12]} 27. Rxd1 {[%emt 0:00:05]} Bxd1 {[%emt 0:00:02]} 28. Nfd2 {
[%emt 0:00:07]} Rc8 {[%emt 0:00:39]} 29. h3 {[%emt 0:00:31]} a5 {[%emt 0:00:31]
} 30. Nc4 {[%emt 0:00:07]} a4 {[%emt 0:00:14]} 31. Nbd2 {[%emt 0:00:50]} Nb4 {
[%emt 0:00:08]} 32. Nd6 {[%emt 0:00:30]} Rc2 {[%emt 0:00:31]} 33. N2c4 {[%emt
0:00:51]} Rxa2 {[%emt 0:00:04]} 34. Nf7+ Kg8 {[%emt 0:00:03]} 35. Nce5 {[%emt
0:01:05]} Bb3 {[%emt 0:00:18]} 36. Nh6+ {[%emt 0:00:12]} Bxh6 {[%emt 0:00:14]}
37. gxh6 {[%emt 0:00:02]} Bd5 {[%emt 0:00:13]} 38. Bxd5+ {[%emt 0:01:38]} Nxd5
{[%emt 0:00:02]} 39. Nd7 {[%emt 0:00:30]} a3 {[%emt 0:00:11]} 40. Bd4 {[%emt 0:
00:09]} Rd2 {[%emt 0:00:09]} 0-1

[Event "16th EWICC 2015"]
[Site "Kutaisi"]
[Date "2015.06.02"]
[Round "5"]
[White "Tereladze, Sopiko"]
[Black "Nikoladze, Sopio"]
[Result "1/2-1/2"]
[ECO "B00"]
[WhiteElo "2128"]
[BlackElo "2155"]
[Annotator "Robot 11"]
[PlyCount "139"]
[EventDate "2015.??.??"]
[EventCountry "GEO"]
[TimeControl "900+10"]

1. e4 {[%emt 0:00:02]} d6 {[%emt 0:00:01]} 2. f4 {[%emt 0:00:06]} Nd7 {[%emt 0:
00:04]} 3. Nf3 {[%emt 0:00:02]} e5 {[%emt 0:00:01]} 4. Bc4 {[%emt 0:00:08]} Be7
{[%emt 0:00:09]} 5. O-O {[%emt 0:00:17]} Ngf6 {[%emt 0:00:02]} 6. d3 {[%emt 0:
00:11]} O-O {[%emt 0:00:06]} 7. Nc3 {[%emt 0:00:09]} c6 {[%emt 0:00:01]} 8.
fxe5 {[%emt 0:00:16]} dxe5 {[%emt 0:00:13]} 9. h3 {[%emt 0:00:15]} b5 {[%emt 0:
00:58]} 10. Bb3 {[%emt 0:00:02]} Qc7 {[%emt 0:00:34]} 11. a3 {[%emt 0:00:50]}
Nc5 {[%emt 0:00:13]} 12. Ba2 {[%emt 0:00:00]} Ne6 {[%emt 0:00:25]} 13. Be3 {
[%emt 0:00:26]} Nh5 {[%emt 0:01:22]} 14. Ne2 {[%emt 0:02:29]} Bc5 {[%emt 0:02:
41]} 15. Bxc5 {[%emt 0:00:01]} Nxc5 {[%emt 0:00:01]} 16. Qe1 {[%emt 0:00:44]}
Qe7 {[%emt 0:00:59]} 17. Qf2 {[%emt 0:00:51]} g6 {[%emt 0:01:11]} 18. Qe3 {
[%emt 0:00:58]} Kg7 {[%emt 0:01:30]} 19. Rf2 {[%emt 0:00:01]} Qd6 {[%emt 0:02:
01]} 20. Raf1 {[%emt 0:00:38]} Be6 {[%emt 0:00:18]} 21. Bxe6 {[%emt 0:02:41]}
Nxe6 {[%emt 0:00:03]} 22. Ng5 {[%emt 0:00:03]} Nef4 {[%emt 0:01:28]} 23. Nxf4 {
[%emt 0:01:21]} exf4 {[%emt 0:00:19]} 24. Qd2 {[%emt 0:00:18]} Qe5 {[%emt 0:00:
34]} 25. Qc3 {[%emt 0:00:19]} Rae8 {[%emt 0:00:38]} 26. Re1 {[%emt 0:01:51]}
Qxc3 {[%emt 0:00:58]} 27. bxc3 {[%emt 0:00:01]} Re5 {[%emt 0:00:07]} 28. h4 {
[%emt 0:00:40]} Rc5 {[%emt 0:00:10]} 29. c4 {[%emt 0:00:51]} bxc4 {[%emt 0:00:
05]} 30. d4 {[%emt 0:00:00]} Ra5 {[%emt 0:00:08]} 31. Rf3 {[%emt 0:00:35]} Rd8
{[%emt 0:00:20]} 32. Rb1 {[%emt 0:01:13]} h6 {[%emt 0:00:11]} 33. Nh3 {[%emt 0:
00:01]} Rxd4 {[%emt 0:01:12]} 34. Nxf4 {[%emt 0:01:25]} Nxf4 {[%emt 0:00:06]}
35. Rxf4 {[%emt 0:00:01]} f5 {[%emt 0:00:15]} 36. Rb7+ {[%emt 0:00:04]} Kf6 {
[%emt 0:00:08]} 37. Rc7 {[%emt 0:00:44]} Ra6 {[%emt 0:00:20]} 38. Rf1 {[%emt 0:
00:23]} Rxe4 {[%emt 0:00:03]} 39. Rd1 {[%emt 0:00:01]} Re6 {[%emt 0:00:15]} 40.
Rdd7 {[%emt 0:00:01]} Rxa3 {[%emt 0:00:06]} 41. h5 {[%emt 0:00:10]} gxh5 {
[%emt 0:00:07]} 42. Rf7+ {[%emt 0:00:13]} Ke5 {[%emt 0:00:03]} 43. Rf8 {[%emt
0:00:22]} Ra5 {[%emt 0:00:17]} 44. Rd7 {[%emt 0:00:08]} Kf4 {[%emt 0:00:10]}
45. Rd4+ {[%emt 0:00:03]} Re4 {[%emt 0:00:02]} 46. Rd6 {[%emt 0:00:01]} Ra2 {
[%emt 0:00:09]} 47. Rxh6 {[%emt 0:00:05]} Rxc2 {[%emt 0:00:03]} 48. Rxh5 {
[%emt 0:00:01]} Re5 {[%emt 0:00:05]} 49. Rh6 {[%emt 0:00:07]} a5 {[%emt 0:00:
08]} 50. Rxc6 {[%emt 0:00:01]} Ree2 {[%emt 0:00:08]} 51. Rg8 {[%emt 0:00:01]}
a4 {[%emt 0:00:05]} 52. Ra6 {[%emt 0:00:04]} Ra2 {[%emt 0:00:02]} 53. Kh2 {
[%emt 0:00:07]} c3 {[%emt 0:00:04]} 54. Kh3 {[%emt 0:00:01]} c2 {[%emt 0:00:11]
} 55. Rc6 {[%emt 0:00:00]} Ra1 {[%emt 0:00:17]} 56. Rc4+ {[%emt 0:00:06]} Re4 {
[%emt 0:00:22]} 57. g3+ {[%emt 0:00:11]} Kf3 {[%emt 0:00:16]} 58. Rc3+ {[%emt
0:00:17]} Re3 {[%emt 0:00:09]} 59. Rxc2 {[%emt 0:00:01]} Rh1+ {[%emt 0:00:46]}
60. Rh2 {[%emt 0:00:01]} Rxh2+ {[%emt 0:00:14]} 61. Kxh2 {[%emt 0:00:01]} a3 {
[%emt 0:00:03]} 62. Ra8 {[%emt 0:00:07]} Ke2 {[%emt 0:00:13]} 63. Kg2 {[%emt 0:
00:06]} Kd2 {[%emt 0:00:06]} 64. Ra5 {[%emt 0:00:01]} Re2+ {[%emt 0:00:48]} 65.
Kf3 {[%emt 0:00:13]} Re3+ {[%emt 0:00:26]} 66. Kf4 {[%emt 0:00:09]} Rb3 {[%emt
0:00:07]} 67. Rxf5 {[%emt 0:00:29]} Rb4+ {[%emt 0:00:05]} 68. Kg5 {[%emt 0:00:
08]} Ra4 {[%emt 0:00:03]} 69. Rf1 {[%emt 0:00:31]} a2 {[%emt 0:00:05]} 70. Ra1
{[%emt 0:00:01]} 1/2-1/2

[Event "16th EWICC 2015"]
[Site "Kutaisi"]
[Date "2015.06.02"]
[Round "5"]
[White "Vakhania, Alexandra"]
[Black "Sviridova, Vlada"]
[Result "0-1"]
[ECO "D02"]
[WhiteElo "2130"]
[BlackElo "2087"]
[Annotator "Robot 11"]
[PlyCount "96"]
[EventDate "2015.??.??"]
[EventCountry "GEO"]
[TimeControl "900+10"]

1. Nf3 {[%emt 0:00:04]} d5 {[%emt 0:00:01]} 2. d4 {[%emt 0:00:02]} Nf6 {[%emt
0:00:01]} 3. Bf4 {[%emt 0:00:02]} c5 {[%emt 0:00:10]} 4. c3 {[%emt 0:00:03]}
Nc6 {[%emt 0:01:02]} 5. e3 {[%emt 0:00:01]} Qb6 {[%emt 0:00:03]} 6. Qb3 {[%emt
0:00:02]} c4 {[%emt 0:00:01]} 7. Qc2 {[%emt 0:00:03]} Bf5 {[%emt 0:00:01]} 8.
Qc1 {[%emt 0:00:01]} h6 {[%emt 0:00:04]} 9. Nbd2 {[%emt 0:00:08]} e6 {[%emt 0:
00:02]} 10. Be2 {[%emt 0:00:02]} Be7 {[%emt 0:00:05]} 11. O-O {[%emt 0:00:03]}
O-O {[%emt 0:00:12]} 12. h3 {[%emt 0:00:01]} Rac8 {[%emt 0:01:11]} 13. Re1 {
[%emt 0:00:03]} Qd8 {[%emt 0:00:24]} 14. Bd1 {[%emt 0:00:01]} b5 {[%emt 0:00:
19]} 15. a3 {[%emt 0:00:04]} a5 {[%emt 0:00:05]} 16. Bc2 {[%emt 0:00:02]} b4 {
[%emt 0:01:31]} 17. axb4 {[%emt 0:01:08]} axb4 {[%emt 0:00:01]} 18. e4 {[%emt
0:00:03]} Nxe4 {[%emt 0:00:40]} 19. Nxe4 {[%emt 0:00:10]} Bxe4 {[%emt 0:00:06]}
20. Bxe4 {[%emt 0:00:02]} dxe4 {[%emt 0:00:01]} 21. Rxe4 {[%emt 0:00:03]} g5 {
[%emt 0:00:30]} 22. Bd2 {[%emt 0:00:41]} Qd5 {[%emt 0:00:09]} 23. Qe1 {[%emt 0:
00:02]} b3 {[%emt 0:00:44]} 24. h4 {[%emt 0:00:13]} Ra8 {[%emt 0:00:31]} 25.
Rxa8 {[%emt 0:00:16]} Rxa8 {[%emt 0:00:01]} 26. hxg5 {[%emt 0:00:35]} hxg5 {
[%emt 0:00:00]} 27. Ne5 {[%emt 0:00:56]} Ra2 {[%emt 0:03:53]} 28. Nxc6 {[%emt
0:07:39]} Qxc6 {[%emt 0:00:01]} 29. Re5 {[%emt 0:00:01]} Qa6 {[%emt 0:02:13]}
30. Bc1 {[%emt 0:02:23]} Ra1 {[%emt 0:00:07]} 31. Qd2 {[%emt 0:00:01]} Bf6 {
[%emt 0:01:43]} 32. Re1 {[%emt 0:00:34]} Qa5 {[%emt 0:00:19]} 33. Qe2 {[%emt 0:
00:27]} Qd5 {[%emt 0:00:13]} 34. Kh2 {[%emt 0:00:29]} Qf5 {[%emt 0:00:53]} 35.
Qxc4 {[%emt 0:02:02]} Qxf2 {[%emt 0:00:09]} 36. Rf1 {[%emt 0:00:22]} Qh4+ {
[%emt 0:00:10]} 37. Kg1 {[%emt 0:00:01]} Kg7 {[%emt 0:00:48]} 38. Qxb3 {[%emt
0:00:06]} g4 {[%emt 0:00:58]} 39. Bh6+ {[%emt 0:01:21]} Kxh6 {[%emt 0:00:02]}
40. Rxa1 {[%emt 0:00:01]} g3 {[%emt 0:00:01]} 41. Ra5 {[%emt 0:01:05]} Qh2+ {
[%emt 0:00:36]} 42. Kf1 {[%emt 0:00:01]} Qh1+ {[%emt 0:00:00]} 43. Ke2 {[%emt
0:00:01]} Qxg2+ {[%emt 0:00:01]} 44. Kd3 {[%emt 0:00:01]} Qf1+ {[%emt 0:00:03]}
45. Kc2 {[%emt 0:00:25]} g2 {[%emt 0:00:07]} 46. Qb8 g1=Q {[%emt 0:00:17]} 47.
Qf8+ {[%emt 0:00:34]} Bg7 {[%emt 0:00:05]} 48. Qc5 {[%emt 0:00:22]} Qf4 0-1